bitfinex/quotes_SOLUSD_20240917
["timestamp","ask_amount","ask_price","bid_price","bid_amount"]
[1726593747838,30.0,132.81,132.77,35.26935056]
[1726593749135,29.5,132.81,132.78,15.26935056]
[1726593749436,23.902374,132.83,132.75,15.26935056]
[1726593749437,1.66654481,132.8,132.75,15.26935056]
[1726593749737,53.09064276,132.83,132.76,20.0]
[1726593749738,24.027864,132.81,132.76,20.0]
[1726593749934,1.66654481,132.8,132.76,35.26935056]
[1726593750133,0.25098,132.81,132.76,35.26935056]
[1726593750329,0.25098,132.81,132.77,15.26935056]
[1726593751343,0.25098,132.81,132.76,15.26935056]
[1726593751842,1.91752481,132.81,132.76,15.26935056]
[1726593752937,1.91752481,132.81,132.77,15.26935056]
[1726593752938,0.12549,132.81,132.77,15.26935056]
[1726593753327,1.79203481,132.81,132.76,15.26935056]
[1726593753522,1.79203481,132.81,132.75,15.26935056]
[1726593753725,1.79203481,132.81,132.76,20.0]
[1726593753931,1.79203481,132.81,132.76,35.26935056]
[1726593755942,14.89603481,132.81,132.76,20.0]
[1726593756120,30.0,132.79,132.76,20.0]
[1726593756320,30.0,132.79,132.74,0.259941]
[1726593756321,1.66654481,132.78,132.74,0.259941]
[1726593756522,23.902374,132.77,132.74,0.259941]
[1726593756774,1.66654481,132.76,132.74,0.259941]
[1726593757742,0.12549,132.77,132.74,0.259941]
[1726593757935,0.25098,132.77,132.74,0.259941]
[1726593758443,1.79203481,132.77,132.74,0.259941]
[1726593758748,0.12549,132.77,132.74,0.259941]
[1726593759046,1.79203481,132.77,132.74,0.259941]
[1726593759830,0.25098,132.77,132.74,0.259941]
[1726593760555,0.12549,132.77,132.74,15.52929156]
[1726593761040,0.12549,132.77,132.74,0.259941]
[1726593761240,1.79203481,132.77,132.74,0.259941]
[1726593761653,0.12549,132.77,132.74,0.259941]
[1726593762042,23.776884,132.78,132.74,15.52929156]
[1726593762245,0.12549,132.78,132.74,15.52929156]
[1726593762762,1.79203481,132.78,132.74,15.52929156]
[1726593763451,1.79203481,132.78,132.75,15.26935056]
[1726593763656,1.79203481,132.78,132.74,15.52929156]
[1726593764552,0.12549,132.78,132.74,15.52929156]
[1726593765137,30.0,132.79,132.74,15.52929156]
[1726593766139,31.66654481,132.79,132.74,15.52929156]
[1726593767163,1.66654481,132.78,132.74,15.52929156]
[1726593767368,1.66654481,132.78,132.74,0.259941]
[1726593768365,30.0,132.79,132.74,15.52929156]
[1726593768543,30.0,132.79,132.74,0.259941]
[1726593768737,30.0,132.79,132.75,15.26935056]
[1726593768965,30.0,132.76,132.75,15.26935056]
[1726593769174,0.25098,132.79,132.75,15.26935056]
[1726593769343,0.12549,132.79,132.75,15.26935056]
[1726593771276,1.79203481,132.79,132.75,15.26935056]
[1726593772875,1.79203481,132.79,132.74,15.52929156]
[1726593773042,0.12549,132.77,132.74,0.259941]
[1726593773544,1.79203481,132.77,132.74,0.259941]
[1726593773969,59.563744,132.81,132.75,15.26935056]
[1726593774153,24.027864,132.79,132.75,15.26935056]
[1726593774356,0.25098,132.79,132.75,15.26935056]
[1726593774651,0.12549,132.79,132.75,15.26935056]
[1726593774860,13.104,132.81,132.76,15.26935056]
[1726593775054,1.66654481,132.8,132.76,15.26935056]
[1726593775258,1.66654481,132.79,132.76,15.26935056]
[1726593775575,1.66654481,132.81,132.76,15.26935056]
[1726593775869,1.66654481,132.82,132.76,15.26935056]
[1726593776172,60.87461064,132.84,132.77,15.26935056]
[1726593776357,30.0,132.78,132.77,15.26935056]
[1726593777269,1.66654481,132.82,132.77,15.26935056]
[1726593777468,1.66654481,132.82,132.76,15.26935056]
[1726593777656,23.902374,132.82,132.77,15.26935056]
[1726593778177,70.362118,132.82,132.77,15.26935056]
[1726593778550,46.459744,132.82,132.78,15.26935056]
[1726593778863,43.902374,132.85,132.78,15.26935056]
[1726593779057,66.24036393,132.85,132.78,15.26935056]
[1726593779288,23.902374,132.83,132.78,15.26935056]
[1726593779569,1.66654481,132.82,132.78,15.26935056]
[1726593780376,0.12549,132.81,132.76,15.26935056]
[1726593780869,0.12549,132.81,132.77,15.26935056]
[1726593781266,0.12549,132.82,132.77,15.26935056]
[1726593781677,1.79203481,132.82,132.77,15.26935056]
[1726593782063,1.79203481,132.82,132.76,15.26935056]
[1726593783564,1.79203481,132.82,132.77,15.26935056]
[1726593785475,0.12549,132.82,132.77,15.26935056]
[1726593786053,1.79203481,132.82,132.77,15.26935056]
[1726593787083,0.12549,132.82,132.77,15.26935056]
[1726593788075,23.902374,132.83,132.79,15.26935056]
[1726593788380,30.0,132.8,132.78,15.26935056]
[1726593788967,30.0,132.8,132.77,15.26935056]
[1726593789373,24.12175407,132.82,132.77,15.26935056]
[1726593789576,1.66654481,132.82,132.77,15.26935056]
[1726593791955,1.66654481,132.82,132.78,15.26935056]
[1726593792258,23.902374,132.83,132.78,15.26935056]
[1726593792684,1.66654481,132.82,132.78,15.26935056]
[1726593793067,1.66654481,132.82,132.77,15.26935056]
[1726593794158,1.66654481,132.82,132.78,15.26935056]
[1726593794358,1.66654481,132.82,132.77,15.26935056]
[1726593794588,1.66654481,132.82,132.78,15.26935056]
[1726593796788,1.66654481,132.82,132.77,15.26935056]
[1726593797684,23.902374,132.83,132.78,15.26935056]
[1726593798088,1.66654481,132.82,132.78,15.26935056]
[1726593798680,46.58163005,132.84,132.79,15.26935056]
[1726593798886,23.902374,132.85,132.79,15.26935056]
[1726593799090,0.12549,132.84,132.79,15.26935056]
[1726593799265,23.776884,132.85,132.8,15.26935056]
[1726593799463,30.0,132.81,132.8,15.26935056]
[1726593799783,46.45614005,132.85,132.8,15.26935056]
[1726593799985,24.12175407,132.86,132.8,15.26935056]
[1726593800162,20.97985209,132.87,132.8,15.26935056]
[1726593800691,0.12549,132.86,132.81,15.26935056]
[1726593800866,24.027864,132.86,132.81,15.26935056]
[1726593801066,54.33199214,132.87,132.83,25.26935056]
[1726593801287,30.0,132.84,132.83,25.26935056]
[1726593801884,54.59193314,132.88,132.83,25.26935056]
[1726593802082,54.59193314,132.88,132.83,10.0]
[1726593802383,24.027864,132.87,132.83,10.0]
[1726593802695,23.902374,132.85,132.83,10.0]
[1726593805002,30.0,132.84,132.83,10.0]
[1726593806590,0.12549,132.86,132.83,10.0]
[1726593808092,1.79203481,132.86,132.83,10.0]
[1726593808780,54.027864,132.84,132.83,10.0]
[1726593809380,24.11491089,132.86,132.83,10.0]
[1726593809572,0.25098,132.87,132.83,10.0]
[1726593811992,0.12549,132.87,132.83,25.26935056]
[1726593812295,1.79203481,132.87,132.83,10.0]
[1726593812489,1.66654481,132.87,132.83,10.0]
[1726593812669,24.036825,132.88,132.83,10.0]
[1726593812869,1.66654481,132.87,132.83,10.0]
[1726593813695,24.036825,132.88,132.83,25.26935056]
[1726593813991,0.12549,132.87,132.83,25.26935056]
[1726593815094,1.79203481,132.87,132.83,25.26935056]
[1726593815488,1.79203481,132.87,132.83,10.0]
[1726593815879,23.776884,132.86,132.83,10.0]
[1726593816080,1.66654481,132.85,132.83,10.0]
[1726593817806,23.776884,132.87,132.83,10.0]
[1726593818107,0.25098,132.86,132.83,10.0]
[1726593818281,0.25098,132.87,132.83,10.0]
[1726593818678,23.776884,132.86,132.83,10.0]
[1726593818877,1.66654481,132.85,132.83,10.0]
[1726593820476,23.902374,132.86,132.83,10.0]
[1726593820691,0.12549,132.85,132.83,10.0]
[1726593821699,1.79203481,132.85,132.83,10.0]
[1726593822206,0.12549,132.85,132.83,10.0]
[1726593822883,1.79203481,132.85,132.83,10.0]
[1726593823288,0.12549,132.85,132.83,10.0]
[1726593827732,1.79203481,132.85,132.83,10.0]
[1726593829093,0.12549,132.85,132.83,10.0]
[1726593829290,24.036825,132.88,132.83,25.26935056]
[1726593829610,0.259941,132.88,132.84,23.2068]
[1726593829815,0.259941,132.88,132.84,38.47615056]
[1726593830192,0.259941,132.88,132.85,15.26935056]
[1726593830398,0.259941,132.88,132.84,38.47615056]
[1726593831021,0.259941,132.88,132.84,23.2068]
[1726593832996,0.259941,132.88,132.84,38.47615056]
[1726593833703,0.259941,132.88,132.84,23.2068]
[1726593840030,0.259941,132.88,132.84,38.47615056]
[1726593843735,0.259941,132.88,132.84,23.2068]
[1726593845215,0.259941,132.88,132.84,38.47615056]
[1726593845741,0.259941,132.88,132.87,15.26935056]
[1726593845944,0.259941,132.88,132.87,35.26935056]
[1726593846236,0.259941,132.88,132.87,56.36815056]
[1726593854223,0.259941,132.88,132.87,41.0988]
[1726593854732,0.259941,132.88,132.87,56.36815056]
[1726593858915,0.2486167,132.9,132.88,20.0]
[1726593859225,0.2486167,132.9,132.89,36.77392933]
[1726593860947,0.2486167,132.9,132.89,35.26935056]
[1726593868036,0.2486167,132.9,132.89,35.52033056]
[1726593871047,0.259941,132.92,132.91,35.26935056]
[1726593871425,0.259941,132.92,132.91,41.87415056]
[1726593871653,0.259941,132.96,132.95,15.9665]
[1726593871952,0.2486167,132.98,132.96,40.35083147]
[1726593872127,0.259941,133.0,132.98,20.0]
[1726593872325,0.259941,133.0,132.99,35.26935056]
[1726593873248,0.259941,133.04,133.0,44.027864]
[1726593873550,0.259941,133.04,133.03,35.52033056]
[1726593873750,0.2486167,133.06,133.04,20.0]
[1726593873957,0.2486167,133.06,133.05,36.7720818]
[1726593874388,0.2486167,133.14,133.09,0.12549]
[1726593874545,0.2486167,133.14,133.09,24.027864]
[1726593874546,0.3228654,133.12,133.09,24.027864]
[1726593874853,0.3228654,133.12,133.11,35.26935056]
[1726593875151,0.2486167,133.14,133.12,20.0]
[1726593875354,0.4120479,133.18,133.14,20.0]
[1726593875528,0.4120479,133.18,133.17,35.26935056]
[1726593875952,0.4120479,133.18,133.17,43.71152504]
[1726593876127,0.4120479,133.18,133.15,23.71152504]
[1726593876336,0.4120479,133.18,133.16,20.0]
[1726593876533,0.2486167,133.22,133.19,44.027864]
[1726593876729,0.2486167,133.22,133.21,43.71152504]
[1726593877036,0.2486167,133.22,133.21,20.0]
[1726593877225,0.2486167,133.22,133.2,20.0]
[1726593879224,0.2486167,133.22,133.21,43.71152504]
[1726593879429,0.2486167,133.22,133.21,45.21248287]
[1726593879624,0.2486167,133.22,133.21,43.71152504]
[1726593880761,0.2486167,133.22,133.19,43.83701504]
[1726593880959,0.2486167,133.22,133.19,43.71152504]
[1726593881153,0.2486167,133.22,133.18,16.2018]
[1726593882053,0.2486167,133.22,133.19,23.71152504]
[1726593882459,0.2486167,133.22,133.2,20.0]
[1726593883375,0.2486167,133.22,133.21,43.71152504]
[1726593891581,0.6606646,133.31,133.24,20.25098]
[1726593891763,0.6606646,133.31,133.29,20.0]
[1726593892368,0.6606646,133.31,133.27,20.0]
[1726593893976,0.6606646,133.31,133.29,20.0]
[1726593895279,0.6606646,133.31,133.26,20.0]
[1726593896696,0.6606646,133.38,133.31,20.25098]
[1726593896877,0.6606646,133.38,133.34,20.0]
[1726593897881,0.3638716,133.38,133.34,20.0]
[1726593902207,0.3638716,133.38,133.37,23.71152504]
[1726593902699,0.3638716,133.38,133.36,20.0]
[1726593903087,0.3638716,133.38,133.36,21.49949343]
[1726593903298,0.3638716,133.38,133.37,43.71152504]
[1726593903471,0.3638716,133.38,133.37,20.0]
[1726593903871,0.3638716,133.38,133.35,20.0]
[1726593904286,0.3638716,133.38,133.34,20.0]
[1726593905203,0.3638716,133.38,133.35,23.71152504]
[1726593905377,0.3638716,133.38,133.36,20.0]
[1726593906004,0.3638716,133.38,133.31,20.0]
[1726593906186,0.3638716,133.38,133.3,30.23492504]
[1726593906596,24.027864,133.37,133.3,6.5234]
[1726593906890,0.3638716,133.38,133.35,23.71152504]
[1726593907292,0.3638716,133.38,133.3,6.5234]
[1726593909202,0.5154132,133.42,133.41,43.71152504]
[1726593910399,0.2486167,133.46,133.42,20.0]
[1726593910700,0.2486167,133.46,133.43,23.71152504]
[1726593911277,0.5154132,133.5,133.46,20.0]
[1726593912414,0.5154132,133.5,133.45,20.0]
[1726593912698,7.4877,133.56,133.45,20.0]
[1726593912699,23.776884,133.52,133.45,20.0]
[1726593913076,23.776884,133.52,133.44,20.0]
[1726593913671,0.12549,133.51,133.44,20.0]
[1726593914599,0.12549,133.51,133.43,23.71152504]
[1726593914600,0.25098,133.51,133.43,23.71152504]
[1726593914990,0.25098,133.51,133.41,23.71152504]
[1726593915176,0.25098,133.51,133.42,20.0]
[1726593915378,0.25098,133.51,133.35,23.71152504]
[1726593915379,0.12549,133.48,133.34,22.7889167]
[1726593915585,0.12549,133.47,133.37,23.71152504]
[1726593916198,0.12549,133.47,133.38,23.71152504]
[1726593916506,0.12549,133.44,133.36,23.71152504]
[1726593918204,0.12549,133.44,133.34,22.7889167]
[1726593918205,7.4947,133.43,133.34,0.2486167]
[1726593918506,23.902374,133.42,133.34,0.2486167]
[1726593918709,23.776884,133.4,133.34,0.2486167]
[1726593919707,30.0,133.38,133.34,0.2486167]
[1726593924905,25.4469,133.38,133.37,57.8382329]
[1726593925204,5.3306,133.51,133.38,20.0]
[1726593925377,7.82217974,133.5,133.41,37.8382329]
[1726593926511,7.82217974,133.5,133.42,1.49879468]
[1726593927283,13.6124,133.52,133.41,37.8382329]
[1726593927284,1.30523327,133.54,133.43,1.49879327]
[1726593927587,8.79363327,133.54,133.43,1.49879327]
[1726593927799,1.30523327,133.54,133.43,1.49879327]
[1726593928304,7.81970836,133.53,133.43,1.49879327]
[1726593928683,7.81970836,133.53,133.47,20.0]
[1726593928893,265.7845,133.61,133.48,1.49790477]
[1726593929086,1.30471226,133.59,133.47,20.0]
[1726593929296,7.81613413,133.6,133.47,20.0]
[1726593930806,24.027864,133.57,133.47,20.0]
[1726593932391,0.5154132,133.58,133.49,20.0]
[1726593932589,0.5154132,133.58,133.51,37.8382329]
[1726593935784,0.5154132,133.58,133.51,20.0]
[1726593937501,23.902374,133.57,133.5,6.6608]
[1726593938493,0.12549,133.54,133.45,6.456]
[1726593938690,23.776884,133.52,133.45,6.456]
[1726593938888,31.266484,133.52,133.4,6.5103]
[1726593939088,0.25098,133.51,133.4,6.5103]
[1726593939513,23.776884,133.5,133.4,6.5103]
[1726593939705,8.07078278,133.51,133.4,6.5103]
[1726593939706,23.776884,133.48,133.4,6.5103]
[1726593939912,23.776884,133.49,133.4,6.5103]
[1726593940112,23.902374,133.48,133.4,6.5103]
[1726593940303,31.394274,133.48,133.39,16.2929]
[1726593940719,0.12549,133.46,133.36,6.5896]
[1726593941096,0.12549,133.47,133.36,6.5896]
[1726593941406,30.0,133.46,133.36,6.5896]
[1726593941608,23.776884,133.45,133.37,20.0]
[1726593942195,30.0,133.43,133.36,6.5896]
[1726593942410,30.0,133.43,133.34,16.3052167]
[1726593942694,23.776884,133.42,133.34,16.3052167]
[1726593943219,30.0,133.41,133.34,16.3052167]
[1726593944522,30.0,133.41,133.35,20.0]
[1726593944823,30.0,133.41,133.34,16.3052167]
[1726593946500,37.4957,133.41,133.34,16.3052167]
[1726593946701,23.776884,133.4,133.34,0.2486167]
[1726593946928,30.0,133.38,133.34,0.2486167]
[1726593951968,0.12549,133.37,133.34,0.2486167]
[1726593952224,31.526864,133.35,133.34,0.2486167]
[1726593953004,30.0,133.36,133.34,21.8929167]
[1726593953199,1.3049894,133.42,133.41,7.4956]
[1726593953427,15.1749,133.53,133.48,7.4915]
[1726593953819,15.29774614,133.54,133.49,7.4911]
[1726593954217,15.29774614,133.54,133.43,1.49854672]
[1726593954421,15.29774614,133.54,133.42,37.8382329]
[1726593954422,7.489,133.53,133.42,37.8382329]
[1726593954811,0.12549,133.51,133.42,37.8382329]
[1726593955211,0.12549,133.5,133.42,37.8382329]
[1726593955624,7.80894614,133.54,133.48,37.8382329]
[1726593955836,7.80894614,133.54,133.53,7.4889]
[1726593956145,0.5154132,133.58,133.49,57.8382329]
[1726593956336,0.5154132,133.58,133.57,7.4867]
[1726593958760,0.5154132,133.58,133.56,7.4872]
[1726593959424,0.5154132,133.58,133.54,7.4878]
[1726593959425,0.1768242,133.58,133.54,7.4878]
[1726593959937,0.12549,133.57,133.54,7.4878]
[1726593960448,0.25098,133.57,133.52,7.4891]
[1726593960639,0.25098,133.57,133.54,7.4883]
[1726593962329,0.25098,133.57,133.53,7.4888]
[1726593962530,24.027864,133.57,133.53,7.4888]
[1726593962731,0.1768242,133.58,133.57,7.4867]
[1726593962950,0.1768242,133.58,133.57,27.4867]
[1726593964861,2.42e-05,133.58,133.57,27.4867]
[1726593965826,2.42e-05,133.58,133.57,7.4867]
[1726593971437,8.2e-06,133.6,133.59,51.387874]
[1726593971627,1.67e-05,133.62,133.61,51.386774]
[1726593971837,0.28831405,133.7,133.66,7.4816]
[1726593972078,0.28831405,133.7,133.66,26.1857]
[1726593973251,0.28831405,133.7,133.66,46.1857]
[1726593973632,7.81972986,133.76,133.69,6.4182]
[1726593973831,0.2486167,133.78,133.69,6.4182]
[1726593973832,8.2e-06,133.74,133.73,65.3159329]
[1726593974057,8.2e-06,133.74,133.73,84.0102329]
[1726593974557,8.2e-06,133.74,133.73,107.7871169]
[1726593974750,0.2486167,133.78,133.77,7.4755]
[1726593974963,0.2486167,133.78,133.77,45.3137329]
[1726593975133,7.81540092,133.83,133.82,7.4727]
[1726593975336,0.2699868,133.83,133.82,7.4727]
[1726593976455,0.12549,133.82,133.81,18.6832]
[1726593976659,0.3954768,133.83,133.69,6.4182]
[1726593976660,0.2699868,133.83,133.78,18.6872]
[1726593976861,0.2699868,133.83,133.8,7.4738]
[1726593977029,0.12549,133.82,133.78,26.1616]
[1726593977231,0.2699868,133.83,133.8,7.4737]
[1726593977549,23.902374,133.82,133.78,18.6872]
[1726593977739,23.902374,133.82,133.77,7.4754]
[1726593978060,23.902374,133.82,133.78,7.4749]
[1726593978237,23.902374,133.82,133.69,6.4182]
[1726593978238,0.12549,133.82,133.79,7.4743]
[1726593978969,60.7667389,133.87,133.84,18.6779]
[1726593978970,0.7667389,133.87,133.84,18.6779]
[1726593979260,0.7667389,133.87,133.86,7.4704]
[1726593979941,0.7667389,133.87,133.84,18.6779]
[1726593979942,0.0334778,133.95,133.91,7.4674]
[1726593980145,20.0334778,133.95,133.76,43.36854988]
[1726593980449,7.4672,133.92,133.86,7.4699]
[1726593980757,30.0,133.91,133.86,7.4699]
[1726593980958,37.4679,133.91,133.85,26.1474]
[1726593981330,7.4682,133.9,133.85,26.1474]
[1726593981535,7.4682,133.9,133.85,18.6764]
[1726593982036,7.4688,133.89,133.85,18.6764]
[1726593982235,7.4695,133.88,133.83,7.472]
[1726593982432,7.4695,133.88,133.72,11.26215488]
[1726593982433,33.902374,133.9,133.74,61.10194861]
[1726593982662,7.4712,133.85,133.8,7.4733]
[1726593983161,7.4705,133.86,133.81,7.4732]
[1726593983667,7.4699,133.87,133.82,7.4726]
[1726593983870,23.902374,133.88,133.81,7.4731]
[1726593983871,7.4704,133.86,133.81,7.4731]
[1726593984860,23.902374,133.88,133.79,18.6857]
[1726593984861,7.4721,133.83,133.79,18.6857]
[1726593985362,7.4716,133.84,133.79,26.16]
[1726593985666,0.12549,133.88,133.79,61.10194861]
[1726593985841,7.4672,133.92,133.86,26.1458]
[1726593986038,7.4672,133.92,133.87,7.4696]
[1726593986552,7.4672,133.92,133.87,7.4698]
[1726593986738,7.4677,133.91,133.86,18.6754]
[1726593986938,7.4683,133.9,133.84,7.4715]
[1726593987257,7.4683,133.9,133.85,7.4705]
[1726593987458,20.0,133.94,133.86,7.4704]
[1726593987459,7.4677,133.91,133.86,7.4704]
[1726593988246,23.902374,133.89,133.83,18.6799]
[1726593988460,7.4705,133.86,133.81,7.473]
[1726593988860,7.4711,133.85,133.81,7.473]
[1726593989434,0.12549,133.85,133.81,7.473]
[1726593989943,7.81330999,133.84,133.8,14.01709344]
[1726593990747,0.12549,133.83,133.74,0.7332611]
[1726593990939,7.59779,133.83,133.74,0.7332611]
[1726593991342,7.59779,133.83,133.78,7.4745]
[1726593991567,7.4728,133.82,133.77,7.4754]
[1726593991864,23.902374,133.83,133.77,7.4754]
[1726593992091,7.4734,133.81,133.74,0.7332611]
[1726593992841,7.4734,133.81,133.77,21.558]
[1726593993065,7.81330999,133.84,133.83,7.4721]
[1726593993264,7.4653,133.96,133.87,7.4699]
[1726593993469,7.80743828,133.94,133.87,7.4699]
[1726593993647,7.80743828,133.94,133.9,7.4681]
[1726593993852,7.80743828,133.94,133.78,20.0]
[1726593994065,7.467,133.93,133.8,20.0]
[1726593994270,7.4671,133.92,133.87,7.4698]
[1726593994764,8.76892424,133.92,133.87,7.4698]
[1726593994954,7.4677,133.91,133.86,7.4703]
[1726593995155,1.30182424,133.92,133.86,7.4703]
[1726593995540,23.776884,133.9,133.86,7.4703]
[1726593996144,23.776884,133.9,133.87,7.4698]
[1726593997272,7.4682,133.9,133.86,7.4703]
[1726593997448,23.902374,133.91,133.86,7.4703]
[1726593997449,31.370174,133.91,133.86,7.4703]
[1726593997852,23.902374,133.91,133.86,7.4703]
[1726593998091,23.902374,133.91,133.78,21.49433272]
[1726593998247,23.902374,133.91,133.87,7.4698]
[1726593998555,1.30182424,133.92,133.79,61.10194861]
[1726593998870,7.4666,133.93,133.88,7.4689]
[1726593999551,9.10919489,133.94,133.86,7.4699]
[1726593999750,20.0,133.93,133.86,7.4699]
[1726593999976,50.0,133.91,133.78,20.0]
[1726594000167,50.0,133.91,133.77,21.558]
[1726594000168,23.902374,133.9,133.77,21.558]
[1726594000483,23.902374,133.87,133.83,7.472]
[1726594001270,31.372474,133.87,133.83,7.472]
[1726594001866,0.12549,133.87,133.84,7.4714]
[1726594002166,0.12549,133.87,133.77,21.558]
[1726594002167,0.12549,133.88,133.83,7.4721]
[1726594002377,23.776884,133.87,133.83,7.4721]
[1726594003261,23.776884,133.87,133.82,7.4725]
[1726594003465,7.4715,133.85,133.8,7.4734]
[1726594003849,7.4717,133.84,133.8,7.4734]
[1726594004160,7.4722,133.83,133.79,7.4743]
[1726594005144,7.4717,133.84,133.79,7.4743]
[1726594005352,7.4721,133.83,133.79,7.4743]
[1726594006272,7.4733,133.81,133.74,0.7332611]
[1726594006452,73.776884,133.85,133.76,7.4758]
[1726594006453,7.4742,133.8,133.76,7.4758]
[1726594006653,7.4742,133.8,133.75,7.4765]
[1726594006849,7.4755,133.77,133.74,0.7332611]
[1726594007062,23.902374,133.8,133.74,0.7332611]
[1726594007472,50.0,133.81,133.74,8.2103611]
[1726594007673,7.59999,133.79,133.74,0.7332611]
[1726594007865,23.776884,133.78,133.74,8.2100611]
[1726594008172,31.251984,133.78,133.74,26.9020611]
[1726594008375,7.4755,133.77,133.74,19.4252611]
[1726594009262,7.4755,133.77,133.74,0.7332611]
[1726594009450,7.4762,133.76,133.74,0.7332611]
[1726594009979,7.4762,133.76,133.72,7.4781]
[1726594010551,7.60229,133.75,133.71,26.1749]
[1726594011376,0.12549,133.75,133.72,7.4783]
[1726594011670,7.60229,133.75,133.71,26.1748]
[1726594011992,31.254484,133.74,133.7,7.4792]
[1726594013775,7.4803,133.69,133.66,0.7667389]
[1726594013957,0.12549,133.7,133.66,0.7667389]
[1726594014150,23.902374,133.7,133.66,0.7667389]
[1726594014572,23.776884,133.68,133.66,0.7667389]
[1726594015155,20.0,133.69,133.66,0.7667389]
[1726594015382,23.902374,133.7,133.62,25.4592389]
[1726594015383,7.4811,133.67,133.62,25.4592389]
[1726594015876,7.4811,133.67,133.63,7.4832]
[1726594016355,27.4805,133.69,133.64,7.4827]
[1726594016563,23.902374,133.68,133.64,7.4827]
[1726594016762,0.12549,133.68,133.65,7.4821]
[1726594017167,20.0,133.69,133.65,7.4821]
[1726594017759,7.4802,133.69,133.65,7.4821]
[1726594017979,7.4802,133.69,133.64,26.189]
[1726594018279,7.4802,133.69,133.58,0.7667389]
[1726594018280,7.4812,133.67,133.63,7.4831]
[1726594018477,23.902374,133.66,133.62,7.4837]
[1726594018889,23.902374,133.66,133.63,7.4831]
[1726594019578,23.902374,133.66,133.62,7.4838]
[1726594019777,0.12549,133.64,133.58,19.4813389]
[1726594019986,23.902374,133.64,133.58,19.4813389]
[1726594020154,1.30431322,133.68,133.65,7.4821]
[1726594020352,1.30431322,133.68,133.58,0.7667389]
[1726594020353,0.12549,133.68,133.64,7.4826]
[1726594020580,0.12549,133.68,133.65,7.4821]
[1726594021085,7.82288265,133.73,133.66,7.4815]
[1726594021086,7.4793,133.71,133.66,7.4815]
[1726594021289,8.78333563,133.71,133.67,7.4809]
[1726594021585,8.78333563,133.71,133.66,7.4814]
[1726594021883,8.78333563,133.71,133.66,26.1844]
[1726594022056,7.4795,133.7,133.66,26.1844]
[1726594022479,1.30403563,133.71,133.65,7.4821]
[1726594022480,31.382474,133.69,133.65,7.4821]
[1726594024166,7.4808,133.68,133.64,7.4826]
[1726594024492,15.30483788,133.68,133.64,7.4826]
[1726594025572,7.4815,133.67,133.63,18.7073]
[1726594025786,23.902374,133.67,133.6,18.7114]
[1726594026278,23.902374,133.65,133.61,7.484]
[1726594026682,31.384674,133.65,133.61,7.484]
[1726594027266,0.12549,133.65,133.58,0.7667389]
[1726594027486,43.776884,133.66,133.58,0.7667389]
[1726594027487,7.4837,133.63,133.59,7.4852]
[1726594027783,43.902374,133.66,133.58,0.7667389]
[1726594027989,7.4825,133.65,133.61,7.484]
[1726594029360,7.4829,133.64,133.6,7.4849]
[1726594032668,7.82403788,133.68,133.65,7.482]
[1726594032867,7.4811,133.67,133.63,26.1907]
[1726594033170,7.82403788,133.68,133.65,7.4818]
[1726594035169,15.30453788,133.68,133.65,7.4818]
[1726594035788,0.12549,133.67,133.65,7.4818]
[1726594035994,7.60659,133.67,133.64,7.4827]
[1726594036197,7.60659,133.67,133.63,26.191]
[1726594037775,0.12549,133.67,133.64,7.4826]
[1726594037980,0.12549,133.67,133.65,18.7051]
[1726594038177,0.12549,133.67,133.66,7.4816]
[1726594038589,0.12549,133.67,133.65,26.1871]
[1726594039295,0.12549,133.67,133.65,18.7051]
[1726594039681,0.12549,133.67,133.65,26.1871]
[1726594040195,7.82403788,133.68,133.65,26.1871]
[1726594042195,7.82403788,133.68,133.65,18.7051]
[1726594042196,15.30463788,133.68,133.65,18.7051]
[1726594043279,7.4811,133.67,133.63,7.4831]
[1726594043598,23.776884,133.67,133.62,18.7084]
[1726594043800,7.4823,133.65,133.62,18.7084]
[1726594044395,7.60729,133.66,133.62,26.1921]
[1726594044774,7.60729,133.66,133.63,7.4833]
[1726594044989,7.60729,133.66,133.62,18.7084]